[Event "Titled Tuesday Blitz March 28 Late 2023"]
[White "Zavortink, Matt"]
[Black "Di Berardino, Diego Rafael"]
[WhiteFideId "2034263"]
[BlackFideId "2105446"]
[WhiteElo "2382"]
[BlackElo "2432"]
[Result "0-1"]
[Round "06"]
[TimeControl "180+2"]
[Date "2023.03.28"]
[WhiteClock "0:00:07"]
[BlackClock "0:00:34"]

1. c4 {[%clk 0:03:00]}  e5 {[%clk 0:02:52]} 2. Nc3 {[%clk 0:03:00]}  Nf6 {[%clk 0:02:52]} 3. Nf3 {[%clk 0:03:00]}  Nc6 {[%clk 0:02:52]} 4. e4 {[%clk 0:02:59]}  Bb4 {[%clk 0:02:50]} 5. d3 {[%clk 0:02:59]}  d6 {[%clk 0:02:48]} 6. a3 {[%clk 0:02:58]}  Bxc3+ {[%clk 0:02:46]} 7. bxc3 {[%clk 0:02:59]}  a6 {[%clk 0:02:38]} 8. g3 {[%clk 0:02:55]}  Rb8 {[%clk 0:02:38]} 9. a4 {[%clk 0:02:39]}  a5 {[%clk 0:02:34]} 10. Bg2 {[%clk 0:02:34]}  O-O {[%clk 0:02:33]} 11. O-O {[%clk 0:02:33]}  Nd7 {[%clk 0:02:33]} 12. d4 {[%clk 0:02:20]}  Re8 {[%clk 0:02:18]} 13. Re1 {[%clk 0:02:18]}  h6 {[%clk 0:02:13]} 14. Ba3 {[%clk 0:01:26]}  b6 {[%clk 0:02:02]} 15. Rb1 {[%clk 0:01:23]}  Ba6 {[%clk 0:02:01]} 16. Qb3 {[%clk 0:01:00]}  Nf6 {[%clk 0:01:52]} 17. dxe5 {[%clk 0:00:45]}  Nxe5 {[%clk 0:01:38]} 18. Nxe5 {[%clk 0:00:42]}  dxe5 {[%clk 0:01:28]} 19. Rbd1 {[%clk 0:00:32]}  Qc8 {[%clk 0:01:25]} 20. Rd5 {[%clk 0:00:14]}  Nxd5 {[%clk 0:01:18]} 21. cxd5 {[%clk 0:00:15]}  Qd7 {[%clk 0:01:15]} 22. c4 {[%clk 0:00:15]}  c6 {[%clk 0:01:11]} 23. Rd1 {[%clk 0:00:14]}  cxd5 {[%clk 0:01:08]} 24. exd5 {[%clk 0:00:14]}  Rec8 {[%clk 0:01:06]} 25. Bf1 {[%clk 0:00:14]}  Qg4 {[%clk 0:00:59]} 26. f3 {[%clk 0:00:13]}  Bxc4 {[%clk 0:00:38]} 27. Bxc4 {[%clk 0:00:09]}  Qxc4 {[%clk 0:00:38]} 28. Qe3 {[%clk 0:00:06]}  Qxa4 {[%clk 0:00:34]} 29. d6 {[%clk 0:00:07]}  Qxd1+ {[%clk 0:00:34]} 0-1


[Site "https://www.chess.com"]

[Event "Titled Tuesday Blitz March 28 Late 2023"]
[White "Sarkar, Justin"]
[Black "Foerster-Yialamas, Lucas"]
[WhiteFideId "2010011"]
[BlackFideId "30901774"]
[WhiteElo "2189"]
[BlackElo "2067"]
[Result "0-1"]
[Round "06"]
[TimeControl "180+2"]
[Date "2023.03.28"]
[WhiteClock "0:00:01"]
[BlackClock "0:00:09"]

1. d4 {[%clk 0:02:55]}  Nf6 {[%clk 0:02:58]} 2. c4 {[%clk 0:02:50]}  g6 {[%clk 0:02:53]} 3. Nc3 {[%clk 0:02:42]}  d5 {[%clk 0:02:52]} 4. Bf4 {[%clk 0:02:34]}  Bg7 {[%clk 0:02:52]} 5. e3 {[%clk 0:02:31]}  O-O {[%clk 0:02:49]} 6. Rc1 {[%clk 0:02:23]}  a6 {[%clk 0:02:39]} 7. Nf3 {[%clk 0:01:55]}  Bg4 {[%clk 0:02:37]} 8. Qb3 {[%clk 0:01:42]}  dxc4 {[%clk 0:02:14]} 9. Qxb7 {[%clk 0:01:38]}  Bxf3 {[%clk 0:02:12]} 10. Qxf3 {[%clk 0:01:32]}  Nbd7 {[%clk 0:02:03]} 11. Bxc4 {[%clk 0:01:31]}  Nb6 {[%clk 0:02:02]} 12. Bb3 {[%clk 0:01:29]}  e6 {[%clk 0:01:50]} 13. O-O {[%clk 0:01:24]}  Qd7 {[%clk 0:01:46]} 14. Be5 {[%clk 0:01:21]}  Ne8 {[%clk 0:01:33]} 15. Ne4 {[%clk 0:01:17]}  Qe7 {[%clk 0:00:54]} 16. Rfd1 {[%clk 0:01:07]}  Nd5 {[%clk 0:00:48]} 17. Bxg7 {[%clk 0:00:59]}  Kxg7 {[%clk 0:00:47]} 18. Nc5 {[%clk 0:00:53]}  Nef6 {[%clk 0:00:42]} 19. Bc4 {[%clk 0:00:36]}  Nb6 {[%clk 0:00:41]} 20. Bxa6 {[%clk 0:00:31]}  Nfd7 {[%clk 0:00:38]} 21. Bb5 {[%clk 0:00:14]}  Nxc5 {[%clk 0:00:31]} 22. dxc5 {[%clk 0:00:13]}  Nd5 {[%clk 0:00:32]} 23. Bc6 {[%clk 0:00:08]}  Rxa2 {[%clk 0:00:31]} 24. Bxd5 {[%clk 0:00:07]}  exd5 {[%clk 0:00:31]} 25. Qxd5 {[%clk 0:00:08]}  Rxb2 {[%clk 0:00:31]} 26. Qd4+ {[%clk 0:00:07]}  Qf6 {[%clk 0:00:32]} 27. Qxf6+ {[%clk 0:00:03]}  Kxf6 {[%clk 0:00:24]} 28. Rd7 {[%clk 0:00:02]}  Rc8 {[%clk 0:00:22]} 29. g4 {[%clk 0:00:01]}  h6 {[%clk 0:00:20]} 30. h3 {[%clk 0:00:01]}  g5 {[%clk 0:00:20]} 31. c6 {[%clk 0:00:01]}  Ke6 {[%clk 0:00:19]} 32. Kg2 {[%clk 0:00:01]}  f5 {[%clk 0:00:17]} 33. Rc4 {[%clk 0:00:01]}  Rf8 {[%clk 0:00:13]} 34. gxf5+ {[%clk 0:00:01]}  Rxf5 {[%clk 0:00:13]} 35. Kg3 {[%clk 0:00:01]}  Rfxf2 {[%clk 0:00:12]} 36. Re4+ {[%clk 0:00:01]}  Kf5 {[%clk 0:00:09]} 0-1


[Site "https://www.chess.com"]

[Event "Titled Tuesday Blitz March 28 Late 2023"]
[White "OKEKE, Isaac Chukwudalu"]
[Black "Lorenzo De La Riva, Lazaro"]
[WhiteFideId "8508526"]
[BlackFideId "2268809"]
[WhiteElo "2161"]
[BlackElo "2294"]
[Result "1/2-1/2"]
[Round "06"]
[TimeControl "180+2"]
[Date "2023.03.28"]
[WhiteClock "0:00:24"]
[BlackClock "0:00:50"]

1. e4 {[%clk 0:02:59]}  c6 {[%clk 0:02:56]} 2. d4 {[%clk 0:02:58]}  d5 {[%clk 0:02:57]} 3. e5 {[%clk 0:02:56]}  c5 {[%clk 0:02:57]} 4. dxc5 {[%clk 0:02:57]}  e6 {[%clk 0:02:56]} 5. Nf3 {[%clk 0:02:57]}  Bxc5 {[%clk 0:02:56]} 6. Bd3 {[%clk 0:02:55]}  Nc6 {[%clk 0:02:54]} 7. a3 {[%clk 0:02:52]}  a5 {[%clk 0:02:51]} 8. O-O {[%clk 0:02:52]}  Nge7 {[%clk 0:02:51]} 9. Qe2 {[%clk 0:02:44]}  Ng6 {[%clk 0:02:50]} 10. Bxg6 {[%clk 0:02:38]}  fxg6 {[%clk 0:02:47]} 11. c4 {[%clk 0:02:35]}  d4 {[%clk 0:02:44]} 12. Rd1 {[%clk 0:02:32]}  O-O {[%clk 0:02:41]} 13. Nc3 {[%clk 0:02:32]}  a4 {[%clk 0:02:39]} 14. Ne4 {[%clk 0:02:27]}  b6 {[%clk 0:02:34]} 15. Bg5 {[%clk 0:02:21]}  Qc7 {[%clk 0:02:33]} 16. Ng3 {[%clk 0:01:14]}  Bb7 {[%clk 0:02:31]} 17. Qe4 {[%clk 0:01:14]}  Ne7 {[%clk 0:02:28]} 18. Qg4 {[%clk 0:01:11]}  Nf5 {[%clk 0:02:28]} 19. Nxf5 {[%clk 0:01:05]}  Rxf5 {[%clk 0:02:27]} 20. Nxd4 {[%clk 0:01:04]}  Bxd4 {[%clk 0:02:18]} 21. Rxd4 {[%clk 0:01:05]}  Qxe5 {[%clk 0:02:18]} 22. Be3 {[%clk 0:00:59]}  Raf8 {[%clk 0:02:09]} 23. Rad1 {[%clk 0:00:58]}  Qc7 {[%clk 0:01:59]} 24. Rd7 {[%clk 0:00:55]}  Qc6 {[%clk 0:01:56]} 25. R1d6 {[%clk 0:00:52]}  Qc8 {[%clk 0:01:51]} 26. Re7 {[%clk 0:00:50]}  R8f7 {[%clk 0:01:45]} 27. Rxf7 {[%clk 0:00:44]}  Kxf7 {[%clk 0:01:42]} 28. Qd4 {[%clk 0:00:43]}  Bc6 {[%clk 0:01:36]} 29. Qxb6 {[%clk 0:00:42]}  Be8 {[%clk 0:01:33]} 30. Qa7+ {[%clk 0:00:41]}  Kg8 {[%clk 0:01:31]} 31. Qe7 {[%clk 0:00:34]}  Rf7 {[%clk 0:01:24]} 32. Qxe6 {[%clk 0:00:31]}  Qxe6 {[%clk 0:01:24]} 33. Rxe6 {[%clk 0:00:32]}  Bd7 {[%clk 0:01:24]} 34. Rb6 {[%clk 0:00:31]}  Rf8 {[%clk 0:01:16]} 35. c5 {[%clk 0:00:30]}  Rc8 {[%clk 0:01:11]} 36. Rb7 {[%clk 0:00:30]}  Bc6 {[%clk 0:01:10]} 37. Ra7 {[%clk 0:00:29]}  Rb8 {[%clk 0:01:06]} 38. Bd4 {[%clk 0:00:28]}  Rb7 {[%clk 0:01:06]} 39. Rxb7 {[%clk 0:00:25]}  Bxb7 {[%clk 0:01:07]} 40. f3 {[%clk 0:00:23]}  Kf7 {[%clk 0:01:07]} 41. Kf2 {[%clk 0:00:23]}  Ke6 {[%clk 0:01:07]} 42. Bxg7 {[%clk 0:00:22]}  Kd5 {[%clk 0:01:08]} 43. Ke3 {[%clk 0:00:18]}  Kxc5 {[%clk 0:01:07]} 44. Kf4 {[%clk 0:00:19]}  Kd5 {[%clk 0:01:06]} 45. Kg5 {[%clk 0:00:19]}  Ba6 {[%clk 0:01:03]} 46. Kh6 {[%clk 0:00:19]}  Ke6 {[%clk 0:01:03]} 47. Kxh7 {[%clk 0:00:19]}  Kf7 {[%clk 0:01:02]} 48. Bc3 {[%clk 0:00:18]}  Bf1 {[%clk 0:01:02]} 49. g3 {[%clk 0:00:18]}  Bg2 {[%clk 0:01:02]} 50. f4 {[%clk 0:00:18]}  Be4 {[%clk 0:01:03]} 51. Kh6 {[%clk 0:00:18]}  Bf3 {[%clk 0:01:02]} 52. Kg5 {[%clk 0:00:19]}  Be4 {[%clk 0:01:01]} 53. g4 {[%clk 0:00:20]}  Bf3 {[%clk 0:01:00]} 54. h4 {[%clk 0:00:21]}  Be2 {[%clk 0:00:59]} 55. f5 {[%clk 0:00:20]}  gxf5 {[%clk 0:00:59]} 56. Kxf5 {[%clk 0:00:21]}  Bd3+ {[%clk 0:00:58]} 57. Kf4 {[%clk 0:00:21]}  Kg8 {[%clk 0:00:57]} 58. h5 {[%clk 0:00:21]}  Be2 {[%clk 0:00:56]} 59. Kg3 {[%clk 0:00:22]}  Kf7 {[%clk 0:00:54]} 60. Kh4 {[%clk 0:00:22]}  Bd1 {[%clk 0:00:55]} 61. g5 {[%clk 0:00:23]}  Ke6 {[%clk 0:00:51]} 62. g6 {[%clk 0:00:21]}  Kf5 {[%clk 0:00:51]} 63. g7 {[%clk 0:00:18]}  Bb3 {[%clk 0:00:51]} 64. Kg3 {[%clk 0:00:17]}  Kg5 {[%clk 0:00:50]} 65. Kf3 {[%clk 0:00:17]}  Kxh5 {[%clk 0:00:50]} 66. Ke4 {[%clk 0:00:17]}  Kg6 {[%clk 0:00:50]} 67. Kd3 {[%clk 0:00:17]}  Kf7 {[%clk 0:00:50]} 68. Bd4 {[%clk 0:00:17]}  Kg8 {[%clk 0:00:50]} 69. Kc3 {[%clk 0:00:18]}  Bd1 {[%clk 0:00:50]} 70. Kb4 {[%clk 0:00:19]}  Bb3 {[%clk 0:00:49]} 71. Bc3 {[%clk 0:00:19]}  Kf7 {[%clk 0:00:50]} 72. Kc5 {[%clk 0:00:20]}  Kg8 {[%clk 0:00:50]} 73. Kd6 {[%clk 0:00:20]}  Kf7 {[%clk 0:00:50]} 74. Kd7 {[%clk 0:00:21]}  Kg8 {[%clk 0:00:51]} 75. Kc6 {[%clk 0:00:21]}  Kf7 {[%clk 0:00:51]} 76. Kd7 {[%clk 0:00:22]}  Kg8 {[%clk 0:00:51]} 77. Ke8 {[%clk 0:00:23]}  Bc2 {[%clk 0:00:51]} 78. Ke7 {[%clk 0:00:24]}  Bb3 {[%clk 0:00:50]} 79. Kf6 {[%clk 0:00:24]}  Bc2 {[%clk 0:00:50]} 1/2-1/2


[Site "https://www.chess.com"]

[Event "Titled Tuesday Blitz March 28 Late 2023"]
[White "Estremera Panos, Sergio"]
[Black "Quinones Garcia, Santiago"]
[WhiteFideId "2200864"]
[BlackFideId "4408497"]
[WhiteElo "2253"]
[BlackElo "2263"]
[Result "1-0"]
[Round "06"]
[TimeControl "180+2"]
[Date "2023.03.28"]
[WhiteClock "0:00:19"]
[BlackClock "0:00:19"]

1. d4 {[%clk 0:03:00]}  Nf6 {[%clk 0:02:56]} 2. c4 {[%clk 0:03:01]}  g6 {[%clk 0:02:56]} 3. Nc3 {[%clk 0:03:02]}  d5 {[%clk 0:02:56]} 4. cxd5 {[%clk 0:03:01]}  Nxd5 {[%clk 0:02:57]} 5. e4 {[%clk 0:03:02]}  Nxc3 {[%clk 0:02:58]} 6. bxc3 {[%clk 0:03:03]}  Bg7 {[%clk 0:02:58]} 7. Nf3 {[%clk 0:03:04]}  c5 {[%clk 0:02:58]} 8. Bb5+ {[%clk 0:03:04]}  Nc6 {[%clk 0:02:58]} 9. d5 {[%clk 0:03:04]}  Qa5 {[%clk 0:02:56]} 10. Rb1 {[%clk 0:03:04]}  a6 {[%clk 0:02:53]} 11. Bxc6+ {[%clk 0:03:04]}  bxc6 {[%clk 0:02:53]} 12. dxc6 {[%clk 0:03:04]}  O-O {[%clk 0:02:51]} 13. O-O {[%clk 0:03:02]}  Qxa2 {[%clk 0:02:41]} 14. Bf4 {[%clk 0:03:01]}  Qe6 {[%clk 0:02:35]} 15. Qa4 {[%clk 0:02:49]}  Bxc3 {[%clk 0:02:20]} 16. c7 {[%clk 0:02:38]}  Bb4 {[%clk 0:02:11]} 17. Ne5 {[%clk 0:02:28]}  f6 {[%clk 0:02:07]} 18. Nd3 {[%clk 0:01:18]}  Bd7 {[%clk 0:02:07]} 19. Qb3 {[%clk 0:01:09]}  Qxb3 {[%clk 0:02:02]} 20. Rxb3 {[%clk 0:01:09]}  a5 {[%clk 0:02:00]} 21. Rc1 {[%clk 0:00:59]}  a4 {[%clk 0:01:58]} 22. Rbb1 {[%clk 0:00:58]}  a3 {[%clk 0:01:58]} 23. Nxc5 {[%clk 0:00:57]}  Bc6 {[%clk 0:01:45]} 24. Rxb4 {[%clk 0:00:52]}  e5 {[%clk 0:01:31]} 25. Be3 {[%clk 0:00:51]}  Rfc8 {[%clk 0:01:31]} 26. Ra1 {[%clk 0:00:27]}  Rxc7 {[%clk 0:01:29]} 27. Nd3 {[%clk 0:00:25]}  Rd7 {[%clk 0:01:23]} 28. Nc5 {[%clk 0:00:22]}  Rda7 {[%clk 0:01:12]} 29. h4 {[%clk 0:00:20]}  Ra5 {[%clk 0:01:08]} 30. Rb3 {[%clk 0:00:19]}  Kf7 {[%clk 0:00:56]} 31. Kh2 {[%clk 0:00:19]}  R8a7 {[%clk 0:00:48]} 32. Rb6 {[%clk 0:00:20]}  Be8 {[%clk 0:00:42]} 33. Rb7+ {[%clk 0:00:20]}  Rxb7 {[%clk 0:00:42]} 34. Nxb7 {[%clk 0:00:21]}  Ra6 {[%clk 0:00:34]} 35. Nc5 {[%clk 0:00:20]}  Ra5 {[%clk 0:00:32]} 36. Nd3 {[%clk 0:00:20]}  Bb5 {[%clk 0:00:29]} 37. Nb4 {[%clk 0:00:20]}  Bc4 {[%clk 0:00:29]} 38. Nd5 {[%clk 0:00:20]}  f5 {[%clk 0:00:27]} 39. Nb6 {[%clk 0:00:19]}  Be6 {[%clk 0:00:25]} 40. exf5 {[%clk 0:00:19]}  gxf5 {[%clk 0:00:25]} 41. g3 {[%clk 0:00:19]}  Ra6 {[%clk 0:00:22]} 42. Rc1 {[%clk 0:00:16]}  a2 {[%clk 0:00:22]} 43. Ra1 {[%clk 0:00:16]}  f4 {[%clk 0:00:21]} 44. gxf4 {[%clk 0:00:16]}  exf4 {[%clk 0:00:21]} 45. Bd4 {[%clk 0:00:17]}  Ra5 {[%clk 0:00:19]} 46. Bb2 {[%clk 0:00:16]}  Rb5 {[%clk 0:00:18]} 47. Bd4 {[%clk 0:00:17]}  Rb4 {[%clk 0:00:16]} 48. Bc5 {[%clk 0:00:14]}  Rb1 {[%clk 0:00:15]} 49. Bd4 {[%clk 0:00:14]}  Rb4 {[%clk 0:00:14]} 50. Bc5 {[%clk 0:00:13]}  Rb2 {[%clk 0:00:15]} 51. Na4 {[%clk 0:00:11]}  Rc2 {[%clk 0:00:13]} 52. Bd4 {[%clk 0:00:11]}  Rc4 {[%clk 0:00:12]} 53. Rxa2 {[%clk 0:00:11]}  Rxd4 {[%clk 0:00:12]} 54. Ra3 {[%clk 0:00:11]}  Rd2 {[%clk 0:00:12]} 55. Rf3 {[%clk 0:00:11]}  Rd4 {[%clk 0:00:12]} 56. Nc3 {[%clk 0:00:10]}  Kg6 {[%clk 0:00:12]} 57. Ne2 {[%clk 0:00:10]}  Kf5 {[%clk 0:00:12]} 58. Nxd4+ {[%clk 0:00:10]}  Ke4 {[%clk 0:00:11]} 59. Nxe6 {[%clk 0:00:10]}  Kxf3 {[%clk 0:00:12]} 60. Ng5+ {[%clk 0:00:11]}  Kxf2 {[%clk 0:00:12]} 61. Nxh7 {[%clk 0:00:12]}  Kf3 {[%clk 0:00:12]} 62. Kh3 {[%clk 0:00:11]}  Ke4 {[%clk 0:00:12]} 63. Ng5+ {[%clk 0:00:12]}  Kf5 {[%clk 0:00:13]} 64. Nf3 {[%clk 0:00:12]}  Kg6 {[%clk 0:00:11]} 65. Kg4 {[%clk 0:00:13]}  Kh7 {[%clk 0:00:12]} 66. Kxf4 {[%clk 0:00:13]}  Kh6 {[%clk 0:00:12]} 67. Kg4 {[%clk 0:00:14]}  Kg6 {[%clk 0:00:13]} 68. h5+ {[%clk 0:00:14]}  Kh6 {[%clk 0:00:14]} 69. Kh4 {[%clk 0:00:14]}  Kh7 {[%clk 0:00:15]} 70. Kg5 {[%clk 0:00:15]}  Kg7 {[%clk 0:00:15]} 71. h6+ {[%clk 0:00:15]}  Kh7 {[%clk 0:00:16]} 72. Kh5 {[%clk 0:00:16]}  Kh8 {[%clk 0:00:16]} 73. Kg6 {[%clk 0:00:17]}  Kg8 {[%clk 0:00:17]} 74. Ng5 {[%clk 0:00:17]}  Kh8 {[%clk 0:00:18]} 75. Nf7+ {[%clk 0:00:17]}  Kg8 {[%clk 0:00:18]} 76. h7+ {[%clk 0:00:18]}  Kf8 {[%clk 0:00:19]} 77. h8=Q+ {[%clk 0:00:19]} 1-0


[Site "https://www.chess.com"]

[Event "Titled Tuesday Blitz March 28 Late 2023"]
[White "Estrada Nieto, Julian"]
[Black "FuenfgegenWilly"]
[WhiteFideId "5101018"]
[WhiteElo "2176"]
[BlackElo "2233"]
[Result "1-0"]
[Round "06"]
[TimeControl "180+2"]
[Date "2023.03.28"]
[WhiteClock "0:02:00"]
[BlackClock "0:02:25"]

1. e4 {[%clk 0:02:58]}  e5 {[%clk 0:02:58]} 2. Nf3 {[%clk 0:02:57]}  Nc6 {[%clk 0:02:58]} 3. Bb5 {[%clk 0:02:57]}  a6 {[%clk 0:02:58]} 4. Ba4 {[%clk 0:02:56]}  Nf6 {[%clk 0:02:58]} 5. O-O {[%clk 0:02:56]}  Be7 {[%clk 0:02:57]} 6. d3 {[%clk 0:02:54]}  b5 {[%clk 0:02:54]} 7. Bb3 {[%clk 0:02:54]}  O-O {[%clk 0:02:54]} 8. a4 {[%clk 0:02:54]}  Bb7 {[%clk 0:02:54]} 9. Nc3 {[%clk 0:02:53]}  d6 {[%clk 0:02:53]} 10. axb5 {[%clk 0:02:49]}  axb5 {[%clk 0:02:51]} 11. Rxa8 {[%clk 0:02:49]}  Bxa8 {[%clk 0:02:51]} 12. Nxb5 {[%clk 0:02:48]}  Na5 {[%clk 0:02:50]} 13. Ba2 {[%clk 0:02:45]}  Kh8 {[%clk 0:02:44]} 14. Ng5 {[%clk 0:02:33]}  d5 {[%clk 0:02:41]} 15. exd5 {[%clk 0:02:29]}  Nxd5 {[%clk 0:02:42]} 16. Qh5 {[%clk 0:02:25]}  Bxg5 {[%clk 0:02:38]} 17. Bxg5 {[%clk 0:02:25]}  f6 {[%clk 0:02:38]} 18. Bd2 {[%clk 0:02:24]}  Nc6 {[%clk 0:02:35]} 19. Bxd5 {[%clk 0:02:20]}  Qxd5 {[%clk 0:02:33]} 20. Nxc7 {[%clk 0:02:20]}  Qc5 {[%clk 0:02:25]} 21. Ne6 {[%clk 0:02:04]}  Qd5 {[%clk 0:02:25]} 22. Nxf8 {[%clk 0:02:01]}  Nd4 {[%clk 0:02:25]} 23. Qxh7# {[%clk 0:02:00]} 1-0


[Site "https://www.chess.com"]

[Event "Titled Tuesday Blitz March 28 Late 2023"]
[White "Kubatko, Ivan"]
[Black "Palacio,Igor Da Paz"]
[WhiteFideId "24111473"]
[BlackFideId "2121140"]
[WhiteElo "2285"]
[BlackElo "2126"]
[Result "1/2-1/2"]
[Round "06"]
[TimeControl "180+2"]
[Date "2023.03.28"]
[WhiteClock "0:00:05"]
[BlackClock "0:00:08"]

1. e4 {[%clk 0:03:00]}  d6 {[%clk 0:02:57]} 2. d4 {[%clk 0:03:00]}  Nf6 {[%clk 0:02:57]} 3. Nc3 {[%clk 0:03:00]}  g6 {[%clk 0:02:57]} 4. f4 {[%clk 0:03:01]}  Bg7 {[%clk 0:02:57]} 5. e5 {[%clk 0:03:01]}  dxe5 {[%clk 0:02:56]} 6. dxe5 {[%clk 0:03:00]}  Qxd1+ {[%clk 0:02:55]} 7. Kxd1 {[%clk 0:03:01]}  Ng4 {[%clk 0:02:52]} 8. Ke1 {[%clk 0:03:01]}  h5 {[%clk 0:02:29]} 9. Nf3 {[%clk 0:02:47]}  c6 {[%clk 0:02:22]} 10. h3 {[%clk 0:02:17]}  Nh6 {[%clk 0:02:22]} 11. Be3 {[%clk 0:01:59]}  Bf5 {[%clk 0:02:17]} 12. Nd4 {[%clk 0:01:57]}  Nd7 {[%clk 0:02:13]} 13. Nxf5 {[%clk 0:01:46]}  Nxf5 {[%clk 0:02:12]} 14. Bf2 {[%clk 0:01:46]}  Nb6 {[%clk 0:02:06]} 15. g3 {[%clk 0:01:25]}  O-O-O {[%clk 0:01:56]} 16. Bd3 {[%clk 0:01:20]}  Kc7 {[%clk 0:01:33]} 17. Ne4 {[%clk 0:01:01]}  Nd5 {[%clk 0:01:27]} 18. Ng5 {[%clk 0:00:49]}  Rhf8 {[%clk 0:01:18]} 19. Bxf5 {[%clk 0:00:19]}  gxf5 {[%clk 0:01:18]} 20. c3 {[%clk 0:00:17]}  Bh6 {[%clk 0:01:16]} 21. Nf3 {[%clk 0:00:16]}  e6 {[%clk 0:01:12]} 22. Ke2 {[%clk 0:00:16]}  Rg8 {[%clk 0:01:11]} 23. Rhd1 {[%clk 0:00:14]}  Ne7 {[%clk 0:01:10]} 24. c4 {[%clk 0:00:14]}  b6 {[%clk 0:01:07]} 25. a4 {[%clk 0:00:13]}  Ng6 {[%clk 0:01:04]} 26. Rxd8 {[%clk 0:00:08]}  Rxd8 {[%clk 0:01:04]} 27. h4 {[%clk 0:00:06]}  a5 {[%clk 0:01:01]} 28. Rb1 {[%clk 0:00:06]}  c5 {[%clk 0:01:00]} 29. Ne1 {[%clk 0:00:05]}  Ne7 {[%clk 0:00:56]} 30. Nf3 {[%clk 0:00:04]}  Nc6 {[%clk 0:00:54]} 31. b3 {[%clk 0:00:04]}  Nb4 {[%clk 0:00:54]} 32. Rd1 {[%clk 0:00:05]}  Nc2 {[%clk 0:00:50]} 33. Rxd8 {[%clk 0:00:04]}  Kxd8 {[%clk 0:00:51]} 34. Kd3 {[%clk 0:00:04]}  Nb4+ {[%clk 0:00:50]} 35. Kc3 {[%clk 0:00:05]}  Kc7 {[%clk 0:00:48]} 36. Be1 {[%clk 0:00:04]}  Nc6 {[%clk 0:00:47]} 37. Bf2 {[%clk 0:00:04]}  Ne7 {[%clk 0:00:45]} 38. Nd2 {[%clk 0:00:04]}  Ng6 {[%clk 0:00:44]} 39. Nf1 {[%clk 0:00:04]}  Ne7 {[%clk 0:00:19]} 40. Kd3 {[%clk 0:00:04]}  Nc6 {[%clk 0:00:19]} 41. Be3 {[%clk 0:00:04]}  Bf8 {[%clk 0:00:18]} 42. Nd2 {[%clk 0:00:04]}  Be7 {[%clk 0:00:18]} 43. Nf3 {[%clk 0:00:04]}  Nb4+ {[%clk 0:00:18]} 44. Kc3 {[%clk 0:00:05]}  Na2+ {[%clk 0:00:18]} 45. Kd2 {[%clk 0:00:05]}  Nb4 {[%clk 0:00:18]} 46. Ne1 {[%clk 0:00:05]}  Nc6 {[%clk 0:00:17]} 47. Ke2 {[%clk 0:00:05]}  Nd8 {[%clk 0:00:17]} 48. Bd2 {[%clk 0:00:06]}  Nc6 {[%clk 0:00:17]} 49. Bc3 {[%clk 0:00:05]}  Kd7 {[%clk 0:00:15]} 50. Kd3 {[%clk 0:00:06]}  Ke8 {[%clk 0:00:14]} 51. Nc2 {[%clk 0:00:06]}  Kd7 {[%clk 0:00:14]} 52. Ne3 {[%clk 0:00:07]}  Kc7 {[%clk 0:00:13]} 53. Bd2 {[%clk 0:00:07]}  Nb8 {[%clk 0:00:13]} 54. Bc3 {[%clk 0:00:07]}  Nd7 {[%clk 0:00:13]} 55. Nd1 {[%clk 0:00:08]}  Nf8 {[%clk 0:00:13]} 56. Bd2 {[%clk 0:00:08]}  Ng6 {[%clk 0:00:13]} 57. Nc3 {[%clk 0:00:08]}  Kc6 {[%clk 0:00:10]} 58. Be3 {[%clk 0:00:07]}  Nf8 {[%clk 0:00:10]} 59. Ke2 {[%clk 0:00:07]}  Nd7 {[%clk 0:00:10]} 60. Nb5 {[%clk 0:00:07]}  Nb8 {[%clk 0:00:09]} 61. Bd2 {[%clk 0:00:07]}  Na6 {[%clk 0:00:09]} 62. Bc3 {[%clk 0:00:08]}  Kb7 {[%clk 0:00:08]} 63. Kd3 {[%clk 0:00:08]}  Nb8 {[%clk 0:00:08]} 64. Be1 {[%clk 0:00:08]}  Nc6 {[%clk 0:00:08]} 65. Bf2 {[%clk 0:00:08]}  Nd8 {[%clk 0:00:09]} 66. Nc3 {[%clk 0:00:08]}  Nc6 {[%clk 0:00:09]} 67. Nd1 {[%clk 0:00:07]}  Nb4+ {[%clk 0:00:10]} 68. Kc3 {[%clk 0:00:07]}  Na2+ {[%clk 0:00:10]} 69. Kd2 {[%clk 0:00:07]}  Nb4 {[%clk 0:00:09]} 70. Be3 {[%clk 0:00:06]}  Nc6 {[%clk 0:00:08]} 71. Nf2 {[%clk 0:00:07]}  Kc7 {[%clk 0:00:08]} 72. Kd3 {[%clk 0:00:06]}  Kd7 {[%clk 0:00:08]} 73. Kd2 {[%clk 0:00:06]}  Nb4 {[%clk 0:00:09]} 74. Kc3 {[%clk 0:00:05]}  Na6 {[%clk 0:00:09]} 75. Kd2 {[%clk 0:00:05]}  Nb8 {[%clk 0:00:09]} 76. Kc3 {[%clk 0:00:05]}  Nc6 {[%clk 0:00:10]} 77. Kd2 {[%clk 0:00:06]}  Bd8 {[%clk 0:00:10]} 78. Kc3 {[%clk 0:00:05]}  Be7 {[%clk 0:00:08]} 79. Kd2 {[%clk 0:00:05]} 1/2-1/2


[Site "https://www.chess.com"]

[Event "Titled Tuesday Blitz March 28 Late 2023"]
[White "Vivas Zamora, Fabian Ernesto"]
[Black "Khatena, Moshe"]
[WhiteFideId "3902480"]
[BlackFideId "2010461"]
[WhiteElo "2262"]
[BlackElo "2165"]
[Result "1-0"]
[Round "06"]
[TimeControl "180+2"]
[Date "2023.03.28"]
[WhiteClock "0:00:42"]
[BlackClock "0:00:46"]

1. e4 {[%clk 0:03:00]}  Nf6 {[%clk 0:02:58]} 2. e5 {[%clk 0:02:59]}  Nd5 {[%clk 0:02:59]} 3. d4 {[%clk 0:02:59]}  d6 {[%clk 0:02:59]} 4. c4 {[%clk 0:03:00]}  Nb6 {[%clk 0:02:59]} 5. f4 {[%clk 0:03:00]}  g5 {[%clk 0:02:56]} 6. fxg5 {[%clk 0:02:44]}  dxe5 {[%clk 0:02:54]} 7. Nf3 {[%clk 0:02:01]}  exd4 {[%clk 0:02:44]} 8. c5 {[%clk 0:02:01]}  N6d7 {[%clk 0:02:30]} 9. Qxd4 {[%clk 0:02:00]}  e5 {[%clk 0:02:30]} 10. Qc4 {[%clk 0:01:40]}  Nc6 {[%clk 0:02:18]} 11. Be3 {[%clk 0:01:38]}  Bg7 {[%clk 0:02:12]} 12. Nc3 {[%clk 0:01:36]}  O-O {[%clk 0:02:12]} 13. O-O-O {[%clk 0:01:35]}  Nd4 {[%clk 0:01:39]} 14. Ne4 {[%clk 0:01:18]}  Qe7 {[%clk 0:01:24]} 15. Bd3 {[%clk 0:01:15]}  Ne6 {[%clk 0:01:15]} 16. Rhf1 {[%clk 0:01:05]}  Kh8 {[%clk 0:01:15]} 17. Nh4 {[%clk 0:01:02]}  Nf4 {[%clk 0:01:09]} 18. Nf5 {[%clk 0:00:55]}  Qe6 {[%clk 0:01:10]} 19. Nxg7 {[%clk 0:00:48]}  Nxd3+ {[%clk 0:01:00]} 20. Qxd3 {[%clk 0:00:49]}  Kxg7 {[%clk 0:00:59]} 21. Nf6 {[%clk 0:00:48]}  Rh8 {[%clk 0:00:53]} 22. Nxd7 {[%clk 0:00:41]}  Qxd7 {[%clk 0:00:46]} 23. Qxd7 {[%clk 0:00:42]}  Bxd7 {[%clk 0:00:46]} 24. Rxd7 {[%clk 0:00:42]} 1-0


[Site "https://www.chess.com"]